[Event "Late-Titled-Tuesday-Blitz-November-28-2023"]
[Site "Chess.com"]
[Date "2023.11.28"]
[Round "1"]
[White "FontVella8"]
[Black "drdaro"]
[Result "1-0"]
[WhiteElo "2565"]
[BlackElo "2228"]
[TimeControl "180+1"]
[EndTime "14:08:24 PST"]
[Termination "FontVella8 won by resignation"]

1. e4 {[%clk 0:02:59.6]} 1... Nc6 {[%clk 0:02:57.8]} 2. Nf3 {[%clk 0:02:59.2]}
2... d6 {[%clk 0:02:58.2]} 3. Nc3 {[%clk 0:02:58.7]} 3... Bg4 {[%clk 0:02:57.6]}
4. Be2 {[%clk 0:02:57.9]} 4... g6 {[%clk 0:02:56.9]} 5. h3 {[%clk 0:02:58.1]}
5... Bxf3 {[%clk 0:02:57.1]} 6. Bxf3 {[%clk 0:02:59]} 6... Bg7 {[%clk
0:02:57.2]} 7. O-O {[%clk 0:02:59.9]} 7... e5 {[%clk 0:02:57.1]} 8. Re1 {[%clk
0:03:00.4]} 8... Nge7 {[%clk 0:02:57.6]} 9. g3 {[%clk 0:02:59.9]} 9... O-O
{[%clk 0:02:58.1]} 10. Bg2 {[%clk 0:03:00.6]} 10... f5 {[%clk 0:02:54.9]} 11.
exf5 {[%clk 0:02:58.9]} 11... gxf5 {[%clk 0:02:55.6]} 12. d3 {[%clk 0:02:56]}
12... Qe8 {[%clk 0:02:47.7]} 13. f4 {[%clk 0:02:52.8]} 13... Qg6 {[%clk
0:02:44.9]} 14. Kh2 {[%clk 0:02:52.9]} 14... Rae8 {[%clk 0:02:35.4]} 15. Nd5
{[%clk 0:02:51.4]} 15... Nxd5 {[%clk 0:02:32.9]} 16. Bxd5+ {[%clk 0:02:51.4]}
16... Kh8 {[%clk 0:02:33.8]} 17. c3 {[%clk 0:02:51.2]} 17... exf4 {[%clk
0:02:24.4]} 18. Bxf4 {[%clk 0:02:50.6]} 18... Be5 {[%clk 0:02:23.3]} 19. Qf3
{[%clk 0:02:47.4]} 19... Bxf4 {[%clk 0:01:53.7]} 20. Qxf4 {[%clk 0:02:48.3]}
20... Ne5 {[%clk 0:01:53.5]} 21. Re3 {[%clk 0:02:39.7]} 21... c6 {[%clk
0:01:49.8]} 22. Bg2 {[%clk 0:02:38.2]} 22... Qh5 {[%clk 0:01:49.6]} 23. Kg1
{[%clk 0:02:32.3]} 23... Ng6 {[%clk 0:01:43.1]} 24. Qd4+ {[%clk 0:02:25.7]}
24... Kg8 {[%clk 0:01:30]} 25. Rae1 {[%clk 0:02:18.3]} 25... Rxe3 {[%clk
0:01:28.8]} 26. Qxe3 {[%clk 0:02:19.2]} 26... f4 {[%clk 0:01:22.2]} 27. Qe6+
{[%clk 0:02:18.1]} 27... Kh8 {[%clk 0:01:18.7]} 28. Rf1 {[%clk 0:00:52.3]} 28...
f3 {[%clk 0:00:44.5]} 29. Qxd6 {[%clk 0:00:46.7]} 29... Rf7 {[%clk 0:00:17.9]}
30. g4 {[%clk 0:00:33.3]} 30... Qh6 {[%clk 0:00:10]} 31. Qd4+ {[%clk 0:00:28.6]}
31... Kg8 {[%clk 0:00:09.9]} 32. Rxf3 {[%clk 0:00:27.9]} 32... Rxf3 {[%clk
0:00:06.7]} 33. Bxf3 {[%clk 0:00:28.8]} 33... Qxh3 {[%clk 0:00:06.9]} 34. Qd8+
{[%clk 0:00:27.5]} 34... Kg7 {[%clk 0:00:07.1]} 35. Qc7+ {[%clk 0:00:27]} 35...
Kh6 {[%clk 0:00:07.2]} 36. Kf2 {[%clk 0:00:19.9]} 36... Nh4 {[%clk 0:00:05]} 37.
Qf4+ {[%clk 0:00:18.1]} 37... Kg7 {[%clk 0:00:04.8]} 38. Qe5+ {[%clk 0:00:17.3]}
38... Kg8 {[%clk 0:00:04.1]} 39. Qg5+ {[%clk 0:00:13.9]} 39... Kf8 {[%clk
0:00:03.8]} 40. Qf6+ {[%clk 0:00:12.8]} 40... Ke8 {[%clk 0:00:03.6]} 41. Qh8+
{[%clk 0:00:08.5]} 41... Kd7 {[%clk 0:00:03.8]} 42. Qxh7+ {[%clk 0:00:09.1]}
42... Kc8 {[%clk 0:00:04]} 43. Qh8+ {[%clk 0:00:08.2]} 43... Kc7 {[%clk
0:00:04.4]} 44. Qe5+ {[%clk 0:00:08.7]} 44... Kc8 {[%clk 0:00:04.6]} 45. Qg3
{[%clk 0:00:05.8]} 45... Qxg3+ {[%clk 0:00:03.7]} 46. Kxg3 {[%clk 0:00:06.5]}
46... Ng6 {[%clk 0:00:04.4]} 47. Be4 {[%clk 0:00:05.7]} 47... Nf8 {[%clk
0:00:03.8]} 48. g5 {[%clk 0:00:06.1]} 48... Kd7 {[%clk 0:00:04.7]} 49. Kf4
{[%clk 0:00:06.3]} 49... Ke6 {[%clk 0:00:04.2]} 50. Bf5+ {[%clk 0:00:06.4]}
50... Kd5 {[%clk 0:00:04]} 51. g6 {[%clk 0:00:06.5]} 51... Nd7 {[%clk 0:00:04]}
52. g7 {[%clk 0:00:06.5]} 52... Nf6 {[%clk 0:00:04.9]} 53. Kg5 {[%clk
0:00:07.1]} 53... Ng8 {[%clk 0:00:04.8]} 54. Bh7 {[%clk 0:00:07.1]} 54... Ne7
{[%clk 0:00:05.5]} 55. g8=Q+ {[%clk 0:00:07.4]} 55... Nxg8 {[%clk 0:00:06.2]}
56. Bxg8+ {[%clk 0:00:08.3]} 56... Kc5 {[%clk 0:00:07]} 57. Bb3 {[%clk
0:00:09.1]} 57... a5 {[%clk 0:00:07.1]} 58. Kf4 {[%clk 0:00:10]} 58... b5 {[%clk
0:00:07.5]} 59. Ke5 {[%clk 0:00:09.2]} 59... a4 {[%clk 0:00:07.9]} 60. d4+
{[%clk 0:00:09.6]} 60... Kb6 {[%clk 0:00:07.9]} 61. Bc2 {[%clk 0:00:09.8]} 61...
c5 {[%clk 0:00:08.2]} 62. d5 {[%clk 0:00:08.6]} 62... b4 {[%clk 0:00:08.5]} 63.
Bxa4 {[%clk 0:00:07.8]} 63... bxc3 {[%clk 0:00:08.7]} 64. bxc3 {[%clk
0:00:08.2]} 64... Ka5 {[%clk 0:00:09.2]} 65. d6 {[%clk 0:00:08.6]} 65... Kxa4
{[%clk 0:00:09.6]} 66. d7 {[%clk 0:00:09.3]} 66... Ka3 {[%clk 0:00:10.3]} 67.
d8=Q {[%clk 0:00:09.6]} 67... Kb2 {[%clk 0:00:11.2]} 68. Qb6+ {[%clk 0:00:09]}
68... Ka1 {[%clk 0:00:11]} 69. a4 {[%clk 0:00:07.3]} 69... c4 {[%clk 0:00:11.9]}
70. a5 {[%clk 0:00:07.1]} 70... Ka2 {[%clk 0:00:12.8]} 71. a6 {[%clk 0:00:07.5]}
71... Ka3 {[%clk 0:00:13.7]} 72. a7 {[%clk 0:00:07.8]} 1-0

[Event "Late-Titled-Tuesday-Blitz-November-28-2023"]
[Site "Chess.com"]
[Date "2023.11.28"]
[Round "1"]
[White "VitaliyChayka"]
[Black "JSPrepz"]
[Result "0-1"]
[WhiteElo "2433"]
[BlackElo "2842"]
[TimeControl "180+1"]
[EndTime "14:08:29 PST"]
[Termination "JSPrepz won by resignation"]

1. d4 {[%clk 0:03:00.9]} 1... g6 {[%clk 0:02:59.8]} 2. Bf4 {[%clk 0:03:01.4]}
2... Bg7 {[%clk 0:03:00.1]} 3. e3 {[%clk 0:03:02.1]} 3... c5 {[%clk 0:03:00.1]}
4. c3 {[%clk 0:03:01.6]} 4... d6 {[%clk 0:02:58.3]} 5. h3 {[%clk 0:03:01]} 5...
cxd4 {[%clk 0:02:58.6]} 6. exd4 {[%clk 0:03:01]} 6... Nf6 {[%clk 0:02:58.4]} 7.
Nf3 {[%clk 0:03:01.2]} 7... O-O {[%clk 0:02:59.1]} 8. Be2 {[%clk 0:03:01.6]}
8... Nc6 {[%clk 0:02:59.8]} 9. O-O {[%clk 0:03:01.7]} 9... Nd5 {[%clk
0:03:00.1]} 10. Bg3 {[%clk 0:02:58.8]} 10... e5 {[%clk 0:03:00.6]} 11. dxe5
{[%clk 0:02:58.1]} 11... dxe5 {[%clk 0:03:01.5]} 12. Na3 {[%clk 0:02:57]} 12...
e4 {[%clk 0:02:59.4]} 13. Nd4 {[%clk 0:02:50.3]} 13... Nxd4 {[%clk 0:02:59]} 14.
cxd4 {[%clk 0:02:51.2]} 14... Qb6 {[%clk 0:02:56]} 15. Nc4 {[%clk 0:02:30]}
15... Qe6 {[%clk 0:02:47.5]} 16. Qd2 {[%clk 0:02:05.3]} 16... Rd8 {[%clk
0:02:45.5]} 17. Rfd1 {[%clk 0:02:00.6]} 17... Nb6 {[%clk 0:02:40.7]} 18. Nxb6
{[%clk 0:01:46.2]} 18... Qxb6 {[%clk 0:02:35.4]} 19. d5 {[%clk 0:01:39]} 19...
Qxb2 {[%clk 0:02:18.8]} 20. Qxb2 {[%clk 0:01:38.7]} 20... Bxb2 {[%clk
0:02:19.7]} 21. Rab1 {[%clk 0:01:39.3]} 21... Bf6 {[%clk 0:02:20.4]} 22. d6
{[%clk 0:01:27.8]} 22... b6 {[%clk 0:02:15.3]} 23. Rbc1 {[%clk 0:01:06.4]} 23...
Be6 {[%clk 0:02:13.8]} 24. Ba6 {[%clk 0:01:03.7]} 24... Bd7 {[%clk 0:01:22.8]}
25. Rc7 {[%clk 0:00:57.3]} 25... h5 {[%clk 0:01:17]} 26. Bb7 {[%clk 0:00:56.6]}
26... Rab8 {[%clk 0:01:17]} 27. Bxe4 {[%clk 0:00:57.2]} 27... h4 {[%clk
0:01:17.7]} 28. Bf4 {[%clk 0:00:54.3]} 28... g5 {[%clk 0:01:17.7]} 29. Bh2
{[%clk 0:00:54.6]} 29... a5 {[%clk 0:01:17.9]} 30. Rdc1 {[%clk 0:00:37.9]} 30...
b5 {[%clk 0:01:17.4]} 31. Bc6 {[%clk 0:00:35.9]} 31... Bxc6 {[%clk 0:01:04.7]}
32. R1xc6 {[%clk 0:00:36.8]} 32... b4 {[%clk 0:01:05.6]} 33. d7 {[%clk
0:00:30.8]} 33... b3 {[%clk 0:01:06.2]} 34. axb3 {[%clk 0:00:30.1]} 34... Rxb3
{[%clk 0:01:07.1]} 35. g4 {[%clk 0:00:27.4]} 35... Kg7 {[%clk 0:00:45.1]} 36.
Rc8 {[%clk 0:00:25.3]} 36... Rxd7 {[%clk 0:00:45]} 37. Ra8 {[%clk 0:00:22.6]}
37... Bd4 {[%clk 0:00:43]} 38. Rxa5 {[%clk 0:00:20.5]} 38... f6 {[%clk
0:00:42.9]} 39. Rd6 {[%clk 0:00:17.5]} 39... Rxd6 {[%clk 0:00:39.6]} 40. Bxd6
{[%clk 0:00:18.4]} 40... Rxh3 {[%clk 0:00:39.4]} 41. Kg2 {[%clk 0:00:18]} 41...
Rd3 {[%clk 0:00:39.1]} 42. Rd5 {[%clk 0:00:17.9]} 42... h3+ {[%clk 0:00:39]} 43.
Kh2 {[%clk 0:00:14.8]} 43... Be5+ {[%clk 0:00:24.8]} 44. Rxe5 {[%clk 0:00:14.5]}
44... fxe5 {[%clk 0:00:25.1]} 45. Bxe5+ {[%clk 0:00:15.4]} 45... Kg6 {[%clk
0:00:25.8]} 46. Bg3 {[%clk 0:00:15.7]} 46... Kf6 {[%clk 0:00:21.7]} 47. Kxh3
{[%clk 0:00:16.3]} 47... Ke6 {[%clk 0:00:22.4]} 48. Kg2 {[%clk 0:00:16.5]} 48...
Rd4 {[%clk 0:00:21.1]} 49. Kf3 {[%clk 0:00:16.6]} 49... Kd5 {[%clk 0:00:21.2]}
50. Ke3 {[%clk 0:00:17]} 50... Rxg4 {[%clk 0:00:20.8]} 51. Kf3 {[%clk
0:00:16.9]} 51... Re4 {[%clk 0:00:20.6]} 52. Bh2 {[%clk 0:00:16.5]} 52... Ra4
{[%clk 0:00:20.6]} 53. Bg3 {[%clk 0:00:16.8]} 53... Ke6 {[%clk 0:00:20.7]} 54.
Ke3 {[%clk 0:00:16.7]} 54... Kf5 {[%clk 0:00:21.3]} 55. Kf3 {[%clk 0:00:17.3]}
55... Ra3+ {[%clk 0:00:21.5]} 56. Kg2 {[%clk 0:00:17.7]} 56... Ke4 {[%clk
0:00:22.1]} 57. Bh2 {[%clk 0:00:16.3]} 57... Ra4 {[%clk 0:00:21.7]} 58. Bg3
{[%clk 0:00:16.8]} 58... Kf5 {[%clk 0:00:22.2]} 59. Bh2 {[%clk 0:00:17.4]} 59...
Kg4 {[%clk 0:00:22.7]} 60. Bg3 {[%clk 0:00:18]} 60... Ra3 {[%clk 0:00:22.9]} 61.
Bh2 {[%clk 0:00:18]} 61... Rf3 {[%clk 0:00:23.2]} 62. Bg3 {[%clk 0:00:18.1]}
62... Rf7 {[%clk 0:00:21.7]} 63. Bh2 {[%clk 0:00:18.4]} 63... Kf5 {[%clk
0:00:22.2]} 64. Bg3 {[%clk 0:00:18.9]} 64... Ke4 {[%clk 0:00:22.7]} 65. Bh2
{[%clk 0:00:19.3]} 65... Kd3 {[%clk 0:00:23.4]} 66. Bg3 {[%clk 0:00:18.2]} 66...
Ke2 {[%clk 0:00:23.9]} 67. Kh3 {[%clk 0:00:17.7]} 67... Kf3 {[%clk 0:00:22.6]}
68. Kh2 {[%clk 0:00:15.4]} 68... Re7 {[%clk 0:00:18.3]} 69. Kg1 {[%clk
0:00:14.9]} 69... Re1+ {[%clk 0:00:18.5]} 70. Kh2 {[%clk 0:00:15.2]} 70... Rf1
{[%clk 0:00:19.1]} 71. Kh3 {[%clk 0:00:15.2]} 71... Rh1+ {[%clk 0:00:19.3]} 72.
Bh2 {[%clk 0:00:15.7]} 72... Kxf2 {[%clk 0:00:19.9]} 73. Kg4 {[%clk 0:00:13.4]}
73... Rxh2 {[%clk 0:00:20.4]} 0-1

[Event "Late-Titled-Tuesday-Blitz-November-28-2023"]
[Site "Chess.com"]
[Date "2023.11.28"]
[Round "1"]
[White "Thormento16"]
[Black "Zavgorodniy_Sergiy"]
[Result "1-0"]
[WhiteElo "2373"]
[BlackElo "2665"]
[TimeControl "180+1"]
[EndTime "14:08:30 PST"]
[Termination "Thormento16 won by checkmate"]

1. e4 {[%clk 0:02:57.7]} 1... c6 {[%clk 0:03:00.1]} 2. d4 {[%clk 0:02:57.5]}
2... d5 {[%clk 0:03:01]} 3. exd5 {[%clk 0:02:58.3]} 3... cxd5 {[%clk 0:03:01.2]}
4. Bd3 {[%clk 0:02:58.3]} 4... Nc6 {[%clk 0:03:00.9]} 5. c3 {[%clk 0:02:57.7]}
5... Qc7 {[%clk 0:03:00.7]} 6. h3 {[%clk 0:02:56.9]} 6... Nf6 {[%clk 0:03:00.2]}
7. Ne2 {[%clk 0:02:54.5]} 7... g6 {[%clk 0:02:50.2]} 8. Bf4 {[%clk 0:02:53.6]}
8... Qb6 {[%clk 0:02:50.3]} 9. Qb3 {[%clk 0:02:53.4]} 9... Qxb3 {[%clk
0:02:47.7]} 10. axb3 {[%clk 0:02:54.3]} 10... Bf5 {[%clk 0:02:46.6]} 11. Bxf5
{[%clk 0:02:53.9]} 11... gxf5 {[%clk 0:02:47.5]} 12. Nd2 {[%clk 0:02:53.7]}
12... e6 {[%clk 0:02:46.9]} 13. O-O {[%clk 0:02:53.4]} 13... Kd7 {[%clk
0:02:44.3]} 14. b4 {[%clk 0:02:53.8]} 14... Bd6 {[%clk 0:02:42.5]} 15. Nb3
{[%clk 0:02:52.7]} 15... b6 {[%clk 0:02:38.9]} 16. Rfe1 {[%clk 0:02:51.1]} 16...
Bxf4 {[%clk 0:02:33.4]} 17. Nxf4 {[%clk 0:02:50.7]} 17... Ne4 {[%clk 0:02:33.3]}
18. Ra6 {[%clk 0:02:34.8]} 18... Kc7 {[%clk 0:02:26]} 19. Rea1 {[%clk
0:02:32.7]} 19... Kb7 {[%clk 0:02:26.1]} 20. f3 {[%clk 0:02:31.2]} 20... Nd6
{[%clk 0:02:17.6]} 21. Kf2 {[%clk 0:02:30.3]} 21... Nc4 {[%clk 0:02:06.4]} 22.
R6a2 {[%clk 0:02:25.6]} 22... Rhg8 {[%clk 0:01:56.8]} 23. Nc1 {[%clk 0:02:22.4]}
23... h6 {[%clk 0:01:48.9]} 24. Ncd3 {[%clk 0:02:21.8]} 24... a5 {[%clk
0:01:44.3]} 25. bxa5 {[%clk 0:02:18.9]} 25... Rxa5 {[%clk 0:01:45.2]} 26. Rxa5
{[%clk 0:02:15.1]} 26... N6xa5 {[%clk 0:01:46.1]} 27. g4 {[%clk 0:02:15.6]}
27... fxg4 {[%clk 0:01:45.5]} 28. hxg4 {[%clk 0:02:15]} 28... Re8 {[%clk
0:00:55.4]} 29. Rh1 {[%clk 0:02:15.1]} 29... e5 {[%clk 0:00:54.9]} 30. dxe5
{[%clk 0:02:15.2]} 30... Nxe5 {[%clk 0:00:55.8]} 31. Rxh6 {[%clk 0:02:08.1]}
31... Nxd3+ {[%clk 0:00:51.8]} 32. Nxd3 {[%clk 0:02:09]} 32... Nc4 {[%clk
0:00:50.4]} 33. Rf6 {[%clk 0:02:04.7]} 33... Re7 {[%clk 0:00:49.9]} 34. b3
{[%clk 0:02:00.9]} 34... Nd2 {[%clk 0:00:46.4]} 35. b4 {[%clk 0:02:00]} 35...
Nb1 {[%clk 0:00:46.2]} 36. g5 {[%clk 0:01:30.8]} 36... Nxc3 {[%clk 0:00:46]} 37.
Kg3 {[%clk 0:01:27.5]} 37... Ka6 {[%clk 0:00:35.8]} 38. Kg4 {[%clk 0:01:23.4]}
38... Kb5 {[%clk 0:00:35.9]} 39. f4 {[%clk 0:01:21.7]} 39... Kc4 {[%clk
0:00:32.1]} 40. Rxf7 {[%clk 0:01:21.9]} 40... Rxf7 {[%clk 0:00:28.1]} 41. Ne5+
{[%clk 0:01:22.3]} 41... Kxb4 {[%clk 0:00:28.7]} 42. Nxf7 {[%clk 0:01:23.2]}
42... d4 {[%clk 0:00:28.8]} 43. Ne5 {[%clk 0:01:22.5]} 43... Nd5 {[%clk
0:00:25.5]} 44. g6 {[%clk 0:01:20.8]} 44... Kc5 {[%clk 0:00:24.6]} 45. Kf5
{[%clk 0:01:19.9]} 45... Kd6 {[%clk 0:00:21.2]} 46. g7 {[%clk 0:01:20.2]} 46...
b5 {[%clk 0:00:18]} 47. Ng6 {[%clk 0:01:13.2]} 47... d3 {[%clk 0:00:13.2]} 48.
g8=Q {[%clk 0:01:10]} 48... d2 {[%clk 0:00:13.7]} 49. Qd8+ {[%clk 0:01:05.9]}
49... Kc5 {[%clk 0:00:13.9]} 50. Qc8+ {[%clk 0:01:03.2]} 50... Kd4 {[%clk
0:00:14.1]} 51. Qh8+ {[%clk 0:00:56.3]} 51... Kc5 {[%clk 0:00:09.6]} 52. Qf8+
{[%clk 0:00:45.1]} 52... Kd4 {[%clk 0:00:09.3]} 53. Qg7+ {[%clk 0:00:42.1]}
53... Kc5 {[%clk 0:00:09.6]} 54. Qa7+ {[%clk 0:00:27.6]} 54... Kc4 {[%clk
0:00:09.9]} 55. Ne5+ {[%clk 0:00:24.6]} 55... Kb4 {[%clk 0:00:08.4]} 56. Qd4+
{[%clk 0:00:21.7]} 56... Kb3 {[%clk 0:00:08.1]} 57. Qxd2 {[%clk 0:00:21.3]}
57... b4 {[%clk 0:00:07.2]} 58. Qxd5+ {[%clk 0:00:21.5]} 58... Ka3 {[%clk
0:00:07.3]} 59. Nd3 {[%clk 0:00:22.4]} 59... b3 {[%clk 0:00:07.3]} 60. Qxb3+
{[%clk 0:00:22.9]} 60... Kxb3 {[%clk 0:00:07.5]} 61. Ke4 {[%clk 0:00:23.8]}
61... Kc4 {[%clk 0:00:06.7]} 62. f5 {[%clk 0:00:24.4]} 62... Kb5 {[%clk
0:00:07.2]} 63. Ke5 {[%clk 0:00:25]} 63... Kc6 {[%clk 0:00:08.1]} 64. Ke6 {[%clk
0:00:25.6]} 64... Kc7 {[%clk 0:00:08]} 65. Ke7 {[%clk 0:00:26.2]} 65... Kc6
{[%clk 0:00:08.7]} 66. f6 {[%clk 0:00:26.9]} 66... Kd5 {[%clk 0:00:09.4]} 67. f7
{[%clk 0:00:27.5]} 67... Kd4 {[%clk 0:00:10.3]} 68. f8=Q {[%clk 0:00:27.7]}
68... Ke3 {[%clk 0:00:11.2]} 69. Qf5 {[%clk 0:00:28.1]} 69... Kd4 {[%clk
0:00:11.3]} 70. Nc5 {[%clk 0:00:28.5]} 70... Kc4 {[%clk 0:00:11.5]} 71. Nb7
{[%clk 0:00:29.1]} 71... Kd4 {[%clk 0:00:11.5]} 72. Ke6 {[%clk 0:00:28.8]} 72...
Kc4 {[%clk 0:00:11.8]} 73. Qd5+ {[%clk 0:00:29.3]} 73... Kc3 {[%clk 0:00:11.8]}
74. Nd8 {[%clk 0:00:29.8]} 74... Kb4 {[%clk 0:00:12.1]} 75. Ke5 {[%clk
0:00:30.4]} 75... Kc3 {[%clk 0:00:12.4]} 76. Qe4 {[%clk 0:00:30.7]} 76... Kb3
{[%clk 0:00:11.8]} 77. Qd4 {[%clk 0:00:31]} 77... Kc2 {[%clk 0:00:12.1]} 78. Qe3
{[%clk 0:00:31.4]} 78... Kb2 {[%clk 0:00:12.4]} 79. Qd3 {[%clk 0:00:31.8]} 79...
Kc1 {[%clk 0:00:12.4]} 80. Qe2 {[%clk 0:00:32.1]} 80... Kb1 {[%clk 0:00:13.1]}
81. Kd4 {[%clk 0:00:33]} 81... Kc1 {[%clk 0:00:13.5]} 82. Kc3 {[%clk 0:00:33.4]}
82... Kb1 {[%clk 0:00:14.4]} 83. Qb2# {[%clk 0:00:34]} 1-0

[Event "Late-Titled-Tuesday-Blitz-November-28-2023"]
[Site "Chess.com"]
[Date "2023.11.28"]
[Round "1"]
[White "SalihEke"]
[Black "ameetghasi100"]
[Result "1/2-1/2"]
[WhiteElo "2440"]
[BlackElo "2811"]
[TimeControl "180+1"]
[EndTime "14:08:41 PST"]
[Termination "Game drawn - insufficient material"]

1. d4 {[%clk 0:02:57.9]} 1... g6 {[%clk 0:02:59.9]} 2. Nf3 {[%clk 0:02:57.8]}
2... Bg7 {[%clk 0:03:00.5]} 3. Bf4 {[%clk 0:02:56.9]} 3... d6 {[%clk 0:03:01.1]}
4. e3 {[%clk 0:02:57.5]} 4... Nc6 {[%clk 0:03:01.2]} 5. Bd3 {[%clk 0:02:57.7]}
5... h6 {[%clk 0:02:59.5]} 6. O-O {[%clk 0:02:57.9]} 6... e5 {[%clk 0:02:59.3]}
7. dxe5 {[%clk 0:02:54.7]} 7... dxe5 {[%clk 0:03:00.2]} 8. Bg3 {[%clk
0:02:54.6]} 8... a6 {[%clk 0:02:58.4]} 9. Nc3 {[%clk 0:02:52.8]} 9... Nge7
{[%clk 0:02:58.4]} 10. a3 {[%clk 0:02:49.2]} 10... O-O {[%clk 0:02:58.1]} 11.
Bc4 {[%clk 0:02:49.7]} 11... Qe8 {[%clk 0:02:53.2]} 12. Nd5 {[%clk 0:02:46.3]}
12... Nxd5 {[%clk 0:02:47.8]} 13. Bxd5 {[%clk 0:02:47.2]} 13... Bd7 {[%clk
0:02:46.6]} 14. e4 {[%clk 0:02:40.3]} 14... Rd8 {[%clk 0:02:43.5]} 15. Qe2
{[%clk 0:02:40]} 15... Bg4 {[%clk 0:02:41.2]} 16. c3 {[%clk 0:02:34.5]} 16...
Kh7 {[%clk 0:02:28.4]} 17. h3 {[%clk 0:02:17.4]} 17... Bd7 {[%clk 0:02:17.5]}
18. Rfe1 {[%clk 0:02:14.3]} 18... Qe7 {[%clk 0:02:11]} 19. Bh4 {[%clk
0:02:07.9]} 19... Bf6 {[%clk 0:02:10.2]} 20. Bxf6 {[%clk 0:02:00.9]} 20... Qxf6
{[%clk 0:02:11.1]} 21. Rad1 {[%clk 0:02:01.4]} 21... Rfe8 {[%clk 0:02:05.6]} 22.
Qc4 {[%clk 0:02:01.4]} 22... Kg7 {[%clk 0:02:05.5]} 23. Qc5 {[%clk 0:01:55.3]}
23... Bxh3 {[%clk 0:01:37]} 24. Bxc6 {[%clk 0:01:18.2]} 24... bxc6 {[%clk
0:01:20.5]} 25. Rxd8 {[%clk 0:01:17.9]} 25... Rxd8 {[%clk 0:01:20.8]} 26. Qxe5
{[%clk 0:01:12]} 26... Bg4 {[%clk 0:01:07.6]} 27. Qxf6+ {[%clk 0:01:09.1]} 27...
Kxf6 {[%clk 0:01:08.5]} 28. e5+ {[%clk 0:01:08]} 28... Kg7 {[%clk 0:00:57.5]}
29. Nd4 {[%clk 0:01:07.4]} 29... c5 {[%clk 0:00:57.7]} 30. Nb3 {[%clk
0:01:02.1]} 30... c4 {[%clk 0:00:48.1]} 31. Nc5 {[%clk 0:01:02.2]} 31... Rb8
{[%clk 0:00:36.2]} 32. Nxa6 {[%clk 0:00:56.6]} 32... Rxb2 {[%clk 0:00:36.3]} 33.
Nxc7 {[%clk 0:00:51]} 33... Rb3 {[%clk 0:00:36.6]} 34. Re4 {[%clk 0:00:45.9]}
34... Bf5 {[%clk 0:00:30.8]} 35. Rxc4 {[%clk 0:00:44.8]} 35... Rxa3 {[%clk
0:00:30]} 36. Ne8+ {[%clk 0:00:43.3]} 36... Kf8 {[%clk 0:00:29.6]} 37. Nf6
{[%clk 0:00:43.1]} 37... Be6 {[%clk 0:00:23.3]} 38. Rc7 {[%clk 0:00:40.2]} 38...
g5 {[%clk 0:00:17]} 39. c4 {[%clk 0:00:35.6]} 39... Ra1+ {[%clk 0:00:09]} 40.
Kh2 {[%clk 0:00:35.7]} 40... Re1 {[%clk 0:00:09.9]} 41. Rc5 {[%clk 0:00:30.5]}
41... Kg7 {[%clk 0:00:07.7]} 42. f3 {[%clk 0:00:25.7]} 42... Kg6 {[%clk
0:00:05.4]} 43. g4 {[%clk 0:00:22.9]} 43... Kg7 {[%clk 0:00:05]} 44. Kg3 {[%clk
0:00:21.7]} 44... Re2 {[%clk 0:00:04.2]} 45. Nh5+ {[%clk 0:00:19.9]} 45... Kg6
{[%clk 0:00:04.2]} 46. Nf6 {[%clk 0:00:20.7]} 46... Kg7 {[%clk 0:00:04.4]} 47.
Rc7 {[%clk 0:00:14.8]} 47... Rxe5 {[%clk 0:00:03.4]} 48. Ne4 {[%clk 0:00:13]}
48... Ra5 {[%clk 0:00:02.6]} 49. c5 {[%clk 0:00:12.6]} 49... Kg6 {[%clk
0:00:03.2]} 50. Rb7 {[%clk 0:00:10.4]} 50... Ra4 {[%clk 0:00:03.1]} 51. Rb8
{[%clk 0:00:10]} 51... Kg7 {[%clk 0:00:02.4]} 52. c6 {[%clk 0:00:09.4]} 52...
Rc4 {[%clk 0:00:03]} 53. Rb6 {[%clk 0:00:04.5]} 53... Bd5 {[%clk 0:00:03.2]} 54.
Nd6 {[%clk 0:00:05.2]} 54... Rxc6 {[%clk 0:00:03.4]} 55. Rxc6 {[%clk 0:00:03.9]}
55... Bxc6 {[%clk 0:00:04.3]} 56. Nf5+ {[%clk 0:00:04.3]} 56... Kh7 {[%clk
0:00:04.7]} 57. Ne7 {[%clk 0:00:04.7]} 57... Bd7 {[%clk 0:00:04.7]} 58. Nd5
{[%clk 0:00:05.4]} 58... Be6 {[%clk 0:00:05.2]} 59. Nf6+ {[%clk 0:00:06.1]}
59... Kg6 {[%clk 0:00:06.1]} 60. Ne4 {[%clk 0:00:06.8]} 60... f5 {[%clk
0:00:05.9]} 61. gxf5+ {[%clk 0:00:05.7]} 61... Kxf5 {[%clk 0:00:06.8]} 62. Nd6+
{[%clk 0:00:06.1]} 62... Ke5 {[%clk 0:00:06.6]} 63. Ne4 {[%clk 0:00:06.7]} 63...
Bf5 {[%clk 0:00:07]} 64. Nf2 {[%clk 0:00:06.9]} 64... h5 {[%clk 0:00:07.1]} 65.
Nd1 {[%clk 0:00:04.2]} 65... h4+ {[%clk 0:00:07.4]} 66. Kf2 {[%clk 0:00:04.7]}
66... Kf4 {[%clk 0:00:08.3]} 67. Ne3 {[%clk 0:00:05.3]} 67... Be6 {[%clk
0:00:07.7]} 68. Ng2+ {[%clk 0:00:05.7]} 68... Ke5 {[%clk 0:00:07.8]} 69. f4+
{[%clk 0:00:05.8]} 69... Kf5 {[%clk 0:00:07.2]} 70. fxg5 {[%clk 0:00:06.3]}
70... h3 {[%clk 0:00:08.1]} 71. Kg3 {[%clk 0:00:05.5]} 71... Kxg5 {[%clk
0:00:09]} 72. Nf4 {[%clk 0:00:05.1]} 72... Bf5 {[%clk 0:00:08.8]} 73. Nxh3+
{[%clk 0:00:05.4]} 1/2-1/2